Workbook

Sheet Exercises
B1: Circulation
B3: As publication manager of a weekly magazine, you wish to develop guaranteed
B4: circulation figures to use in soliciting advertising. A study of weekly sales over the past
B5: three years fails to reveal any marked trend or seasonal variation; the circulation
B6: figures seem to be roughly normally distributed. During the period studied, the mean
B7: weekly circulation was 650,000 copies, with a sample standard deviation of 40,000
B8: copies. For parts (a)-(d), which review basic concepts involving random variables and
B9: the normal distribution, assume these figures to be accurate estimates.
A11: (a) | B11: If you guarantee the sale of at least 600,000 copies next week, what chance
B12: will you face of failing to meet the guarantee?
A13: (b) | B13: How many copies of your next issue must you print, in order to have only
B14: one chance in 100 of being caught short?
A15: (c) | B15: What mean weekly circulation figure would you be 95% safe in
B16: guaranteeing over the next (52-week) year?
A17: (d) | B17: What total circulation figure would you be 95% safe in
B18: guaranteeing over the next (52-week) year?
A19: (e) | B19: The estimate of mean weekly circulation is actually based on a
B20: sample of 156 weeks (3 years). Give a 95%-confidence interval
B21: for the true mean weekly circulation.
B23: Advertising Sales
B25: A magazine publishing house wishes to estimate (for purposes of advertising
B26: sales) the average annual expenditure on furniture among its subscribers. A
B27: sample of 100 subscribers is chosen at random from the 100,000-person
B28: subscription list, and each sampled subscriber is questioned about his
B29: furniture purchases in the last year. The sample mean response is $530,
B30: with a sample standard deviation of $180.
A32: (a) | B32: What estimate (of the population average) should be reported?
A33: (b) | B33: Give a 95% confidence interval for the estimate.
A34: (c) | B34: How would your answer in (b) change, if the subscription list included 400,000 people?
A35: (d) | B35: How would your answer in (b) change, if the subscription list included 1,000 people?
A36: (e) | B36: How would your answer in (b) change, if the sample size were only 10?
A37: (f) | B37: Did any of your answers above require special assumptions?
A38: (g) | B38: If (b) had asked for a 99% confidence interval, would you have reported a
B39: wider or narrower interval?
B41: TV Ratings
B43: The A.C. Nielsen Co. wishes to estimate, for each of several cities, the
B44: amount of time a typical adult living in the city spends watching television
B45: each week. In San Diego (which has an adult population of 400,000), they
B46: sample 100 people. The sample mean is 25 hours, with a sample standard
B47: deviation of 10 hours.
A49: (a) | B49: Give a 95%-confidence interval for their estimate.
A50: (b) | B50: How many more people should they interview, in order to be 95%-confident
B51: that their final estimate is wrong by no more than 1 hour?
A52: (c) | B52: Assuming that viewing time varies from person to person in Los Angeles by
B53: about as much as it does in San Diego, and that Nielsen wishes to make as
B54: precise an estimate for L.A. as they did in part (a) for San Diego, how large
B55: a sample should they take in L.A. (which has an adult population of
B56: 1,600,000)?
B58: Miscellany
B60: Explain, briefly, the difference between sampling bias and sampling error.
B63: A 95%-confidence interval for an estimate indicates how much you can trust
B64: the (fill in the blank) __________________ .
B67: A firm has conducted a study, and has found that a 95%-confidence interval
B68: for the mean time required to process new insurance policies is (10 days,
B69: 12 days). This means that
B71: (a) | C71: only 5 percent of all policies take less than 10 or more than 12 days to process.
B72: (b) | C72: only 5 percent of all policies take between 10 and 12 days to process.
B73: (c) | C73: about 95 out of every 100 intervals similarly constructed will contain the true
C74: mean processing time.
B75: (d) | C75: the probability is 0.95 that the true mean lies between 10 and 12 days.

Sheet Excel functions
B1: Excel Functions
B3: Excel's normal distribution and t-distribution functions are not consistently
B4: defined. While NORMDIST and NORMINV are both left-tail oriented, TDIST is
B5: right-tail oriented and TINV is two-tail oriented.
B7: 1000 | C7: mean
B8: 200 | C8: standard deviation
B9: 900 | C9: target
B10: =NORMDIST(B9,B7,B8,TRUE) -> 0.3085375387 | C10: =showformula(B10) -> =NORMDIST(B9,B7,B8,TRUE)
C11: Pr(normally-distributed random variable with given mean and
C12: standard deviation is less than or equal to target value)
B14: 1000 | C14: mean
B15: 200 | C15: standard deviation
B16: 0.95 | C16: target left-tail probability
B17: =NORMINV(B16,B14,B15) -> 1328.970725 | C17: =showformula(B17) -> =NORMINV(B16,B14,B15)
C18: value that a normally-distributed random variable with given mean
C19: and standard deviation has "target probability" of being less than
C20: or equal to
B22: 9 | C22: degrees of freedom | J22: 9 | K22: degrees of freedom
B23: -1.5 | C23: target value (must be non-negative) | J23: 1.5 | K23: target value (must be non-negative)
B24: =_xlfn.T.DIST(B23,B22,TRUE) -> 0.08392532803 | C24: =showformula(B24) -> =T.DIST(B23,B22,TRUE) | F24: left tail | J24: =TDIST(J23,J22,TRUE) -> 0.08392532803 | K24: =showformula(J24) -> =TDIST(J23,J22,TRUE) | N24: right tail
C25: Pr(t-distributed random variable with given number of degrees of | K25: Pr(t-distributed random variable with given number of degrees of
C26: freedom [and with mean 0 and standard deviation 1] is greater | K26: freedom [and with mean 0 and standard deviation 1] is greater
C27: than or equal to target value) | K27: than or equal to target value)
B29: 9 | J29: 9
B30: 0.025 | C30: target two-tail probability | J30: 0.05 | K30: target two-tail probability
B31: =_xlfn.T.INV(B30,B29) -> -2.262157163 | C31: =showformula(B31) -> =T.INV(B30,B29) | F31: left tail | J31: =TINV(J30,J29) -> 2.262157163 | K31: =showformula(J31) -> =TINV(J30,J29) | N31: two-tail
C32: value that the absolute value of a t-distributed random variable with | K32: value that the absolute value of a t-distributed random variable with
C33: given number of degrees of freedom has "target probability" of | K33: given number of degrees of freedom has "target probability" of
C34: exceeding | K34: exceeding
B36: Excel offers functions for computing the variance and standard deviation of a
B37: "population" of values, and a matching set of functions for using sample
B38: values to estimate a population's variance and standard deviation.
B40: 1
B41: 2 | D41: a range of sample data
B42: 3
B43: 4
B45: =AVERAGE(B40:B43) -> 2.5 | C45: =showformula(B45) -> =AVERAGE(B40:B43) | F45: population and sample mean | I45: sum of observations, divided by "n"
B46: =VARP(B40:B43) -> 1.25 | C46: =showformula(B46) -> =VARP(B40:B43) | F46: population variance | I46: sum of squared differences from the mean, divided by "n"
B47: =STDEVP(B40:B43) -> 1.118033989 | C47: =showformula(B47) -> =STDEVP(B40:B43) | F47: population standard deviation | I47: square root of population variance
B48: =VAR(B40:B43) -> 1.666666667 | C48: =showformula(B48) -> =VAR(B40:B43) | F48: sample variance | I48: sum of squared differences from the mean, divided by "n-1"
B49: =STDEV(B40:B43) -> 1.290994449 | C49: =showformula(B49) -> =STDEV(B40:B43) | F49: sample standard deviation | I49: square root of sample variance

Sheet Circulation
B1: Circulation
B3: As publication manager of a weekly magazine, you wish to develop guaranteed
B4: circulation figures to use in soliciting advertising. A study of weekly sales over the past
B5: three years fails to reveal any marked trend or seasonal variation; the circulation
B6: figures seem to be roughly normally distributed. During the period studied, the mean
B7: weekly circulation was 650,000 copies, with a sample standard deviation of 40,000
B8: copies. For parts (a)-(d), which review basic concepts involving random variables and
B9: the normal distribution, assume these figures to be accurate estimates.
A11: (a) | B11: If you guarantee the sale of at least 600,000 copies next week, what chance
B12: will you face of failing to meet the guarantee?
B14: You will only fail to meet the guarantee if demand runs below 600,000.
B16: 650000 | C16: weekly mean
B17: 40000 | C17: standard deviation
B18: 600000 | C18: guarantee | E18: =NORMDIST(B18,B16,B17,TRUE) -> 0.1056497737 | F18: Pr(demand < guaranteed amount)
A20: (b) | B20: How many copies of your next issue must you print, in order to have only
B21: one chance in 100 of being caught short?
B23: You will only run short if demand exceeds the number of copies printed.
B25: 0.01 | C25: chance of running out
B26: =NORMINV(1-B25,B16,B17) -> 743053.915 | C26: number to print
A28: (c) | B28: What mean weekly circulation figure would you be 95% safe in
B29: guaranteeing over the next (52-week) year?
B31: In a typical advertising contract, you promise to rebate some of the fees if your
B32: circulation doesn't reach a specified target level. In this case, you want a 95%
B33: chance that circulation will be above the guaranteed level, i.e., only a 5% chance
B34: of circulation being below that level.
B36: The key here is to remember that the variance of a sum of independent random
B37: variables is the sum of their variances. Therefore the standard deviation of a
B38: sum of n independent, identically-distributed random variables is sqrt(n) times
B39: the standard deviation of a single one, and the standard deviation of the mean is
B40: the original standard deviation divided by sqrt(n).
B42: 52 | C42: time period
B43: =B16 -> 650000 | C43: mean per week
B44: =B17/SQRT(B42) -> 5547.001962 | C44: standard deviation of mean over time period
B45: 0.05 | C45: chance of failing to meet guarantee
B47: =NORMINV(B45,B43,B44) -> 640875.9937 | C47: guarantee to make
A49: (d) | B49: What total circulation figure would you be 95% safe in
B50: guaranteeing over the next (52-week) year?
B52: The answer obviously must be 52 times the answer to the previous question.
B54: =B42*B47 -> 33325551.67 | C54: guarantee to make
B56: This could also be obtained directly.
B58: =B42 -> 52 | C58: time period
B59: =B16*B58 -> 33800000 | C59: expected total over time period
B60: =B17*SQRT(B58) -> 288444.102 | C60: standard deviation of total over time period
B61: =B45 -> 0.05 | C61: chance of failing to meet guarantee
B63: =NORMINV(B61,B59,B60) -> 33325551.67 | C63: guarantee to make
A65: (e) | B65: The estimate of mean weekly circulation is actually based on a
B66: sample of 156 weeks (3 years). Give a 95%-confidence interval
B67: for the true mean weekly circulation.
B69: =B16 -> 650000 | C69: ± | D69: =1.96*B17/SQRT(156) -> 6277.023629 | E69: fine for all practical purposes
B70: =B16 -> 650000 | C70: =C69 -> ± | D70: =TINV(0.05,156-1)*B17/SQRT(156) -> 6326.301887 | E70: a bit more precise

Sheet Advertising sales
B1: Advertising Sales
B3: A magazine publishing house wishes to estimate (for purposes of advertising
B4: sales) the average annual expenditure on furniture among its subscribers. A
B5: sample of 100 subscribers is chosen at random from the 100,000-person
B6: subscription list, and each sampled subscriber is questioned about his
B7: furniture purchases in the last year. The sample mean response is $530,
B8: with a sample standard deviation of $180.
A10: (a) | B10: What estimate (of the population average) should be reported?
B12: 530 | C12: sample mean, and estimate of (true) population mean
B13: 180 | C13: sample standard deviation, and estimate of population standard deviation
B14: 100 | C14: sample size
A16: (b) | B16: Give a 95% confidence interval for the estimate.
B18: =B12 -> 530 | C18: ± | D18: =1.96*B13/SQRT(B14) -> 35.28
A20: (c) | B20: How would your answer in (b) change, if the subscription list included 400,000 people?
B22: It wouldn't change. But see (d).
A24: (d) | B24: How would your answer in (b) change, if the subscription list included 1,000 people?
B26: Again, it wouldn't change. But this is assuming that the sample procedure
B27: used simple random sampling with replacement. Had it used simple random
B28: sampling without replacement, the answers to (b)-(d) would be:
C30: population size | E30: margin of error | G30: for sticklers
C31: 100000 | E31: =1.96*$B$13/SQRT($B$14)*SQRT((C31-$B$14)/(C31-1)) -> 35.2625319 | G31: =TINV(0.05,$B$14-1)*$B$13/SQRT($B$14)*SQRT((C31-$B$14)/(C31-1)) -> 35.6982212
C32: 400000 | E32: =1.96*$B$13/SQRT($B$14)*SQRT((C32-$B$14)/(C32-1)) -> 35.27563382 | G32: =TINV(0.05,$B$14-1)*$B$13/SQRT($B$14)*SQRT((C32-$B$14)/(C32-1)) -> 35.711485
C33: 1000 | E33: =1.96*$B$13/SQRT($B$14)*SQRT((C33-$B$14)/(C33-1)) -> 33.48629409 | G33: =TINV(0.05,$B$14-1)*$B$13/SQRT($B$14)*SQRT((C33-$B$14)/(C33-1)) -> 33.90003693
A35: (e) | B35: How would your answer in (b) change, if the sample size were only 10?
A36: (f) | B36: Did any of your answers above require special assumptions?
B38: Assuming the the population distribution is roughly normal - probably a bad
B39: assumption in reality, since it's likely that the population contains a number
B40: of people who bought no furniture last year - the answer to (e) would be
B42: =B12 -> 530 | C42: ± | D42: =B44*B13/SQRT(10) -> 128.7642431
B44: =TINV(0.05,10-1) -> 2.262157163 | C44: how many standard deviations out from the mean you must go in
C45: the t-distribution with 10-1 = 9 degrees of freedom, in order to cut
C46: off 5% of the distribution in the two tails
A49: (g) | B49: If (b) had asked for a 99% confidence interval, would you have reported a
B50: wider or narrower interval?
B52: Wider. The 99%-confidence interval is
B54: =B12 -> 530 | C54: ± | D54: =NORMINV(0.995,0,1)*B13/SQRT(B14) -> 46.36492746 | E54: fine
B55: =B12 -> 530 | C55: ± | D55: =TINV(0.01,100-1)*B13/SQRT(B14) -> 47.27529823 | E55: a bit more precise

Sheet TV ratings
B1: TV Ratings
B3: The A.C. Nielsen Co. wishes to estimate, for each of several cities, the
B4: amount of time a typical adult living in the city spends watching television
B5: each week. In San Diego (which has an adult population of 400,000), they
B6: sample 100 people. The sample mean is 25 hours, with a sample standard
B7: deviation of 10 hours.
A9: (a) | B9: Give a 95%-confidence interval for their estimate.
B11: 25 | C11: ± | D11: =1.96*10/SQRT(100) -> 1.96
A13: (b) | B13: How many more people should they interview, in order to be 95%-confident
B14: that their final estimate is wrong by no more than 1 hour?
B16: It takes roughly four times as large a sample, in order to cut the margin
B17: of error in the estimate in half (this is the "square-root" effect). Hence, they
B18: need a total sample of roughly 400 viewers.
B20: Working it out precisely, the total should be
B22: =(1.96*10/1)^2 -> 384.16 | C22: viewers in the full sample
A24: (c) | B24: Assuming that viewing time varies from person to person in Los Angeles by
B25: about as much as it does in San Diego, and that Nielsen wishes to make as
B26: precise an estimate for L.A. as they did in part (a) for San Diego, how large
B27: a sample should they take in L.A. (which has an adult population of
B28: 1,600,000)?
B30: The same size. For practical purposes (i.e., ignoring the distinction between
B31: sampling with and without replacement), the margin of error in an estimate
B32: depends on the sample size, but not on the population size.

Sheet Miscellany
B1: Miscellany
B3: Explain, briefly, the difference between sampling bias and sampling error.
B5: Sampling bias is the result of being dumb; its presence is undetectable by
B6: statistical analysis; it is completely avoidable through the use of good
B7: judgment. Sampling error is the result of being unlucky; our exposure to it
B8: can be measured and controlled; it can never be eliminated (except through
B9: 100% sampling).
B12: A 95%-confidence interval for an estimate indicates how much you can trust
B13: the (fill in the blank) __________________ .
B15: ... estimation procedure. The point here is that we don't have any idea how
B16: accurate our actual estimate is, but we do know how much accuracy is
B17: inherent in the procedure we used to make the estimate.
B20: A firm has conducted a study, and has found that a 95%-confidence interval
B21: for the mean time required to process new insurance policies is (10 days,
B22: 12 days). This means that
A24: (a) | B24: only 5 percent of all policies take less than 10 or more than 12 days to process.
A25: (b) | B25: only 5 percent of all policies take between 10 and 12 days to process.
A26: (c) | B26: about 95 out of every 100 intervals similarly constructed will contain the true
B27: mean processing time.
A28: (d) | B28: the probability is 0.95 that the true mean lies between 10 and 12 days.
B30: (a) and (b) are totally wrong, since they refer to the distribution of individuals
B31: within the population, and a 95%-confidence interval tells us nothing about
B32: that. It could well be that half of all the policies are approved instantly, and
B33: the other half take about three weeks.
B35: (c) is objectively (no one could argue) correct. It restates the definition of a
B36: 95%-confidence interval.
B38: (d) is subjectively (from the viewpoint of the person making the estimate,
B39: who sees only this sample data) correct, if we accept the principle that
B40: most people equate lack-of-personal-knowledge with randomness. (d) is the
B41: interpretation most commonly used in practice.
